[Event "*** Titled Tuesday Blitz"]
[Site "Chess.com"]
[Date "2021.04.06"]
[Round "11"]
[White "Goryachkina"]
[Black "anasta10"]
[Result "1-0"]
[WhiteElo "2639"]
[BlackElo "2534"]
[TimeControl "180+1"]
[EndTime "12:06:57 PDT"]
[Termination "Goryachkina won by resignation"]

1. e4 {[%clk 0:03:00.2]} 1... e6 {[%clk 0:02:59.2]} 2. d4 {[%clk 0:02:59.5]}
2... d5 {[%clk 0:02:59.7]} 3. e5 {[%clk 0:03:00]} 3... c5 {[%clk 0:02:59.7]} 4.
c3 {[%clk 0:03:00.4]} 4... Nc6 {[%clk 0:03:00.2]} 5. Nf3 {[%clk 0:03:00.4]} 5...
Qb6 {[%clk 0:03:00.3]} 6. a3 {[%clk 0:02:57.9]} 6... c4 {[%clk 0:02:59.2]} 7.
Be2 {[%clk 0:02:56.9]} 7... Bd7 {[%clk 0:02:58.4]} 8. O-O {[%clk 0:02:56.7]}
8... Na5 {[%clk 0:02:57.9]} 9. Nbd2 {[%clk 0:02:53.7]} 9... f6 {[%clk
0:02:57.2]} 10. Re1 {[%clk 0:02:51.8]} 10... Be7 {[%clk 0:02:47.5]} 11. exf6
{[%clk 0:02:37.5]} 11... Bxf6 {[%clk 0:02:22.5]} 12. Bf1 {[%clk 0:02:33.2]}
12... Ne7 {[%clk 0:02:17.3]} 13. Ne5 {[%clk 0:02:33]} 13... Bxe5 {[%clk
0:02:01.8]} 14. Rxe5 {[%clk 0:02:31.5]} 14... Ng6 {[%clk 0:02:00.7]} 15. Re1
{[%clk 0:02:28.4]} 15... O-O-O {[%clk 0:01:59.5]} 16. Nf3 {[%clk 0:02:24.2]}
16... Nb3 {[%clk 0:01:58.1]} 17. Rb1 {[%clk 0:02:23.9]} 17... Rdf8 {[%clk
0:01:57.4]} 18. Ne5 {[%clk 0:02:09.5]} 18... Nxe5 {[%clk 0:01:55.2]} 19. Rxe5
{[%clk 0:02:09.1]} 19... Rf7 {[%clk 0:01:33.5]} 20. Bg5 {[%clk 0:02:08]} 20...
Rhf8 {[%clk 0:01:31.9]} 21. Bh4 {[%clk 0:02:06.7]} 21... Rf5 {[%clk 0:01:24.2]}
22. Bg3 {[%clk 0:01:58.7]} 22... g6 {[%clk 0:01:19.8]} 23. Qe2 {[%clk 0:01:52]}
23... Na5 {[%clk 0:01:03.1]} 24. Re1 {[%clk 0:01:48]} 24... Qd8 {[%clk
0:00:48.7]} 25. Rxf5 {[%clk 0:01:31.4]} 25... Rxf5 {[%clk 0:00:48.2]} 26. Bd6
{[%clk 0:01:25.9]} 26... Nc6 {[%clk 0:00:46.6]} 27. g3 {[%clk 0:01:24.6]} 27...
Rh5 {[%clk 0:00:25.5]} 28. Bg2 {[%clk 0:01:21.1]} 28... Qb6 {[%clk 0:00:18.1]}
29. Bf4 {[%clk 0:01:16.6]} 29... Qd8 {[%clk 0:00:14.5]} 30. Bf3 {[%clk
0:01:16.3]} 30... Rf5 {[%clk 0:00:14.6]} 31. Bg4 {[%clk 0:01:16.1]} 31... Rxf4
{[%clk 0:00:15.2]} 32. gxf4 {[%clk 0:01:16.3]} 32... Qf6 {[%clk 0:00:13.3]} 33.
Bxe6 {[%clk 0:01:13.2]} 33... Qxf4 {[%clk 0:00:13.3]} 34. Bxd5 {[%clk 0:00:54]}
34... Qg5+ {[%clk 0:00:12.8]} 35. Bg2 {[%clk 0:00:53.9]} 35... Bh3 {[%clk
0:00:09.4]} 36. f4 {[%clk 0:00:51]} 36... Qh4 {[%clk 0:00:05.9]} 37. Bxh3+
{[%clk 0:00:43.8]} 37... Qxh3 {[%clk 0:00:06.8]} 38. Qe6+ {[%clk 0:00:43.9]} 1-0

[Event "*** Titled Tuesday Blitz"]
[Site "Chess.com"]
[Date "2021.04.06"]
[Round "11"]
[White "KacperPolOK"]
[Black "Chessbard1972"]
[Result "1-0"]
[WhiteElo "2418"]
[BlackElo "2325"]
[TimeControl "180+1"]
[EndTime "12:06:58 PDT"]
[Termination "KacperPolOK won by resignation"]

1. e4 {[%clk 0:03:00.9]} 1... c5 {[%clk 0:02:59.4]} 2. Nc3 {[%clk 0:03:00.9]}
2... a6 {[%clk 0:02:59.2]} 3. g3 {[%clk 0:02:59.6]} 3... e6 {[%clk 0:02:58.4]}
4. Bg2 {[%clk 0:03:00]} 4... Nc6 {[%clk 0:02:58.6]} 5. Nf3 {[%clk 0:02:55.4]}
5... Qc7 {[%clk 0:02:55.7]} 6. a4 {[%clk 0:02:55.1]} 6... Rb8 {[%clk 0:02:54.7]}
7. O-O {[%clk 0:02:54.4]} 7... b5 {[%clk 0:02:54.2]} 8. axb5 {[%clk 0:02:54.7]}
8... axb5 {[%clk 0:02:54.4]} 9. d4 {[%clk 0:02:54.5]} 9... b4 {[%clk 0:02:52.3]}
10. Na4 {[%clk 0:02:49.9]} 10... cxd4 {[%clk 0:02:49.9]} 11. Nxd4 {[%clk
0:02:47.6]} 11... Nf6 {[%clk 0:02:36.5]} 12. Nxc6 {[%clk 0:02:38.7]} 12... dxc6
{[%clk 0:02:33]} 13. e5 {[%clk 0:02:04.2]} 13... Nd5 {[%clk 0:02:28.5]} 14. Qg4
{[%clk 0:02:03.7]} 14... g6 {[%clk 0:02:24.4]} 15. Bxd5 {[%clk 0:01:41.6]} 15...
exd5 {[%clk 0:02:16.4]} 16. Qd4 {[%clk 0:01:32.8]} 16... Bg7 {[%clk 0:02:13.8]}
17. Bf4 {[%clk 0:01:32.7]} 17... O-O {[%clk 0:02:12.2]} 18. Nc5 {[%clk
0:01:25.7]} 18... Qe7 {[%clk 0:02:00]} 19. Rfe1 {[%clk 0:01:24.1]} 19... Bf5
{[%clk 0:01:57.4]} 20. Nd3 {[%clk 0:01:20.3]} 20... Ra8 {[%clk 0:01:55.9]} 21.
Rxa8 {[%clk 0:01:18.5]} 21... Rxa8 {[%clk 0:01:54.9]} 22. Qb6 {[%clk 0:01:19.4]}
22... Bxd3 {[%clk 0:01:24.3]} 23. Qxc6 {[%clk 0:01:11.1]} 23... Rd8 {[%clk
0:00:55.7]} 24. cxd3 {[%clk 0:01:10.7]} 24... g5 {[%clk 0:00:54.8]} 25. Bd2
{[%clk 0:01:04]} 25... d4 {[%clk 0:00:54]} 26. e6 {[%clk 0:01:00.9]} 26... f5
{[%clk 0:00:50.1]} 27. Bxg5 {[%clk 0:00:53.9]} 27... Qxg5 {[%clk 0:00:43]} 28.
e7 {[%clk 0:00:54.1]} 28... Rb8 {[%clk 0:00:17.8]} 29. e8=Q+ {[%clk 0:00:51.7]}
29... Rxe8 {[%clk 0:00:17.3]} 30. Rxe8+ {[%clk 0:00:45.5]} 30... Bf8 {[%clk
0:00:17.4]} 31. Qe6+ {[%clk 0:00:44]} 31... Kg7 {[%clk 0:00:17.7]} 32. Rc8
{[%clk 0:00:42.6]} 32... f4 {[%clk 0:00:13.2]} 33. Rc7+ {[%clk 0:00:35.2]} 33...
Kh8 {[%clk 0:00:12]} 34. Qf7 {[%clk 0:00:35.4]} 34... Qh6 {[%clk 0:00:08.3]} 35.
Rc8 {[%clk 0:00:32.8]} 1-0

[Event "*** Titled Tuesday Blitz"]
[Site "Chess.com"]
[Date "2021.04.06"]
[Round "11"]
[White "jd001"]
[Black "chessprincesa1"]
[Result "0-1"]
[WhiteElo "2141"]
[BlackElo "2219"]
[TimeControl "180+1"]
[EndTime "12:06:58 PDT"]
[Termination "chessprincesa1 won by checkmate"]

1. d4 {[%clk 0:03:00.9]} 1... Nf6 {[%clk 0:02:54.4]} 2. c4 {[%clk 0:03:00]} 2...
e6 {[%clk 0:02:50.2]} 3. Nf3 {[%clk 0:02:59.2]} 3... d5 {[%clk 0:02:50.2]} 4.
Nc3 {[%clk 0:02:58.3]} 4... Bb4 {[%clk 0:02:49.8]} 5. Bg5 {[%clk 0:02:57.4]}
5... dxc4 {[%clk 0:02:48.3]} 6. e3 {[%clk 0:02:47.4]} 6... b5 {[%clk 0:02:44.9]}
7. Ne5 {[%clk 0:02:43.2]} 7... Bb7 {[%clk 0:02:32]} 8. Be2 {[%clk 0:02:40.3]}
8... Bxg2 {[%clk 0:02:27.7]} 9. Rg1 {[%clk 0:02:31.6]} 9... Bb7 {[%clk
0:02:23.5]} 10. Bf3 {[%clk 0:02:31.1]} 10... c6 {[%clk 0:02:14.7]} 11. Kf1
{[%clk 0:02:27.9]} 11... a6 {[%clk 0:01:57.4]} 12. a4 {[%clk 0:02:26.7]} 12...
Qe7 {[%clk 0:01:47.2]} 13. Rg3 {[%clk 0:02:12]} 13... h6 {[%clk 0:01:22]} 14.
Bxf6 {[%clk 0:02:11]} 14... gxf6 {[%clk 0:01:16.1]} 15. Ng4 {[%clk 0:01:57]}
15... h5 {[%clk 0:01:16.1]} 16. Rh3 {[%clk 0:01:38.2]} 16... Nd7 {[%clk
0:01:14.3]} 17. axb5 {[%clk 0:01:35.9]} 17... axb5 {[%clk 0:01:06.4]} 18. e4
{[%clk 0:01:22.7]} 18... O-O-O {[%clk 0:00:59.8]} 19. Ne3 {[%clk 0:01:20.4]}
19... c5 {[%clk 0:00:57.8]} 20. Nxb5 {[%clk 0:01:15.8]} 20... Ne5 {[%clk
0:00:53.3]} 21. Bg2 {[%clk 0:00:33.7]} 21... cxd4 {[%clk 0:00:43.2]} 22. Nc2
{[%clk 0:00:29]} 22... d3 {[%clk 0:00:38.1]} 23. Nxb4 {[%clk 0:00:28.1]} 23...
Qxb4 {[%clk 0:00:39]} 24. Nc3 {[%clk 0:00:24.6]} 24... Qxb2 {[%clk 0:00:34.3]}
25. Na4 {[%clk 0:00:24.2]} 25... Qb3 {[%clk 0:00:26.3]} 26. Nc5 {[%clk
0:00:22.9]} 26... Qxd1+ {[%clk 0:00:23.8]} 27. Rxd1 {[%clk 0:00:22.8]} 27... c3
{[%clk 0:00:21.4]} 28. Nxd3 {[%clk 0:00:21.3]} 28... c2 {[%clk 0:00:20.1]} 29.
Rc1 {[%clk 0:00:21]} 29... Nxd3 {[%clk 0:00:18]} 30. Rxc2+ {[%clk 0:00:21.2]}
30... Kb8 {[%clk 0:00:18]} 31. Rc3 {[%clk 0:00:19.3]} 31... Nf4 {[%clk
0:00:17.6]} 32. Rhg3 {[%clk 0:00:14.7]} 32... Rd1# {[%clk 0:00:17.4]} 0-1

[Event "*** Titled Tuesday Blitz"]
[Site "Chess.com"]
[Date "2021.04.06"]
[Round "11"]
[White "UCantHandleDenker"]
[Black "Grandmaster1369"]
[Result "1-0"]
[WhiteElo "2586"]
[BlackElo "2432"]
[TimeControl "180+1"]
[EndTime "12:07:00 PDT"]
[Termination "UCantHandleDenker won on time"]

1. Nf3 {[%clk 0:03:00.9]} 1... Nf6 {[%clk 0:02:59.7]} 2. g3 {[%clk 0:03:01.4]}
2... e6 {[%clk 0:03:00.2]} 3. Bg2 {[%clk 0:03:02]} 3... d5 {[%clk 0:03:00.9]} 4.
O-O {[%clk 0:03:02.6]} 4... b5 {[%clk 0:03:01.3]} 5. d3 {[%clk 0:03:03.5]} 5...
Bb7 {[%clk 0:03:01.4]} 6. Nbd2 {[%clk 0:03:04.2]} 6... Nbd7 {[%clk 0:03:00.4]}
7. e4 {[%clk 0:03:04.7]} 7... dxe4 {[%clk 0:02:50.2]} 8. Ng5 {[%clk 0:03:04.8]}
8... Be7 {[%clk 0:02:42.8]} 9. Ngxe4 {[%clk 0:03:03.2]} 9... Nxe4 {[%clk
0:02:42.7]} 10. Nxe4 {[%clk 0:03:03.8]} 10... Rb8 {[%clk 0:02:32.3]} 11. a4
{[%clk 0:02:57.2]} 11... b4 {[%clk 0:02:30.4]} 12. a5 {[%clk 0:02:55.4]} 12...
O-O {[%clk 0:02:29]} 13. a6 {[%clk 0:02:53]} 13... Ba8 {[%clk 0:02:25.4]} 14.
Be3 {[%clk 0:02:52]} 14... Nb6 {[%clk 0:02:21.2]} 15. h4 {[%clk 0:02:43.6]}
15... f5 {[%clk 0:02:09.9]} 16. Ng5 {[%clk 0:02:38.1]} 16... Bxg2 {[%clk
0:02:06.5]} 17. Kxg2 {[%clk 0:02:28.3]} 17... Qd5+ {[%clk 0:02:00.5]} 18. Qf3
{[%clk 0:02:22.8]} 18... Bxg5 {[%clk 0:01:44.1]} 19. hxg5 {[%clk 0:02:19.1]}
19... Qxf3+ {[%clk 0:01:36.1]} 20. Kxf3 {[%clk 0:02:18]} 20... Nd5 {[%clk
0:01:33.3]} 21. Bxa7 {[%clk 0:02:14.5]} 21... Rb5 {[%clk 0:01:18]} 22. Bd4
{[%clk 0:02:07.5]} 22... c5 {[%clk 0:01:15.8]} 23. Be5 {[%clk 0:02:04.3]} 23...
Nb6 {[%clk 0:00:52.3]} 24. a7 {[%clk 0:02:00.4]} 24... c4 {[%clk 0:00:49.7]} 25.
Bd6 {[%clk 0:01:50.1]} 25... Ra8 {[%clk 0:00:49.4]} 26. d4 {[%clk 0:01:26.5]}
26... Nc8 {[%clk 0:00:35.3]} 27. Bc5 {[%clk 0:01:26.8]} 27... Rb7 {[%clk
0:00:19.1]} 28. Ra6 {[%clk 0:01:26.1]} 28... Kf7 {[%clk 0:00:17.8]} 29. Re1
{[%clk 0:01:25.3]} 29... b3 {[%clk 0:00:12.4]} 30. c3 {[%clk 0:01:24.3]} 30...
Nxa7 {[%clk 0:00:03.4]} 31. Rea1 {[%clk 0:01:20.8]} 31... e5 {[%clk 0:00:01.6]}
32. Bxa7 {[%clk 0:01:18.7]} 32... e4+ {[%clk 0:00:02.5]} 33. Ke3 {[%clk
0:01:18.4]} 33... g6 {[%clk 0:00:03.1]} 34. Bc5 {[%clk 0:01:17.2]} 34... Rxa6
{[%clk 0:00:04]} 35. Rxa6 {[%clk 0:01:17.2]} 35... Rc7 {[%clk 0:00:04.5]} 36.
Kf4 {[%clk 0:01:16.8]} 36... Rb7 {[%clk 0:00:03.3]} 37. Ra7 {[%clk 0:01:15.8]}
37... Rxa7 {[%clk 0:00:03.3]} 38. Bxa7 {[%clk 0:01:16.2]} 38... Ke6 {[%clk
0:00:04.1]} 39. Bc5 {[%clk 0:01:15.6]} 39... Kd5 {[%clk 0:00:04.4]} 40. g4
{[%clk 0:01:10]} 40... fxg4 {[%clk 0:00:01.8]} 41. Kxg4 {[%clk 0:01:10.1]} 41...
Ke6 {[%clk 0:00:01.3]} 42. Kf4 {[%clk 0:01:10.3]} 42... Kd5 {[%clk 0:00:01.7]}
43. Bf8 {[%clk 0:01:10.1]} 1-0

[Event "*** Titled Tuesday Blitz"]
[Site "Chess.com"]
[Date "2021.04.06"]
[Round "11"]
[White "lukazz029"]
[Black "Shankovskyi"]
[Result "1-0"]
[WhiteElo "2148"]
[BlackElo "2409"]
[TimeControl "180+1"]
[EndTime "12:07:00 PDT"]
[Termination "lukazz029 won on time"]

1. d4 {[%clk 0:03:00.9]} 1... e6 {[%clk 0:03:00.9]} 2. c4 {[%clk 0:02:59.5]}
2... d5 {[%clk 0:03:00.9]} 3. g3 {[%clk 0:02:59.3]} 3... Nf6 {[%clk 0:03:00.6]}
4. Nf3 {[%clk 0:02:59]} 4... Bb4+ {[%clk 0:03:00.1]} 5. Bd2 {[%clk 0:02:57.5]}
5... Bxd2+ {[%clk 0:02:57.2]} 6. Qxd2 {[%clk 0:02:55.8]} 6... O-O {[%clk
0:02:57]} 7. Bg2 {[%clk 0:02:54.8]} 7... Nc6 {[%clk 0:02:57.1]} 8. cxd5 {[%clk
0:02:51]} 8... exd5 {[%clk 0:02:56.9]} 9. O-O {[%clk 0:02:51.1]} 9... Ne4 {[%clk
0:02:56.7]} 10. Qc2 {[%clk 0:02:51.6]} 10... Bf5 {[%clk 0:02:47.9]} 11. Qb3
{[%clk 0:02:50.8]} 11... Rb8 {[%clk 0:02:41.2]} 12. Nc3 {[%clk 0:02:50.5]} 12...
Nxc3 {[%clk 0:02:29.1]} 13. bxc3 {[%clk 0:02:49.1]} 13... Re8 {[%clk 0:02:28.6]}
14. Rfe1 {[%clk 0:02:47]} 14... Na5 {[%clk 0:02:23.1]} 15. Qa3 {[%clk
0:02:38.1]} 15... b6 {[%clk 0:02:17.4]} 16. Ne5 {[%clk 0:02:30.6]} 16... f6
{[%clk 0:02:02.3]} 17. Nd3 {[%clk 0:02:23]} 17... Kh8 {[%clk 0:01:54.9]} 18. Nf4
{[%clk 0:02:22]} 18... c6 {[%clk 0:01:51]} 19. Bf3 {[%clk 0:02:16.8]} 19... Ra8
{[%clk 0:01:43]} 20. Kg2 {[%clk 0:02:05.6]} 20... Nc4 {[%clk 0:01:42]} 21. Qc1
{[%clk 0:02:01.4]} 21... Qd7 {[%clk 0:01:37.5]} 22. a4 {[%clk 0:01:57.4]} 22...
Re7 {[%clk 0:01:23.9]} 23. e3 {[%clk 0:01:50.3]} 23... Rae8 {[%clk 0:01:22.3]}
24. h4 {[%clk 0:01:48.9]} 24... h6 {[%clk 0:01:14.1]} 25. h5 {[%clk 0:01:47.1]}
25... Kg8 {[%clk 0:00:54.3]} 26. Be2 {[%clk 0:01:42.1]} 26... Be4+ {[%clk
0:00:52.1]} 27. f3 {[%clk 0:01:39.7]} 27... Bh7 {[%clk 0:00:50.2]} 28. Bxc4
{[%clk 0:01:36.6]} 28... dxc4 {[%clk 0:00:49.8]} 29. e4 {[%clk 0:01:34.7]} 29...
Qc7 {[%clk 0:00:23.8]} 30. Qb2 {[%clk 0:01:28.4]} 30... c5 {[%clk 0:00:20.7]}
31. d5 {[%clk 0:01:26.8]} 31... Qe5 {[%clk 0:00:20.4]} 32. a5 {[%clk 0:01:19.8]}
32... Rb7 {[%clk 0:00:18.3]} 33. Qb5 {[%clk 0:01:16.6]} 33... Reb8 {[%clk
0:00:14.6]} 34. Qxc4 {[%clk 0:01:13.7]} 34... b5 {[%clk 0:00:10.6]} 35. Qxc5
{[%clk 0:01:10.6]} 35... Rc7 {[%clk 0:00:10.9]} 36. Qd4 {[%clk 0:01:09.1]} 36...
Rxc3 {[%clk 0:00:08.7]} 37. Qxa7 {[%clk 0:01:05.7]} 37... Rbc8 {[%clk
0:00:07.5]} 38. Qd7 {[%clk 0:01:01.4]} 38... Rc2+ {[%clk 0:00:07.4]} 39. Kh1
{[%clk 0:00:58.9]} 39... Rd2 {[%clk 0:00:02.7]} 40. Qxc8+ {[%clk 0:00:55.2]}
40... Kf7 {[%clk 0:00:02.3]} 41. Qe6+ {[%clk 0:00:54.6]} 1-0

[Event "*** Titled Tuesday Blitz"]
[Site "Chess.com"]
[Date "2021.04.06"]
[Round "11"]
[White "EvgenyT"]
[Black "Koalaskakistis"]
[Result "1-0"]
[WhiteElo "2895"]
[BlackElo "2592"]
[TimeControl "180+1"]
[EndTime "12:07:03 PDT"]
[Termination "EvgenyT won by resignation"]

1. c4 {[%clk 0:03:00.9]} 1... f5 {[%clk 0:02:55.4]} 2. d4 {[%clk 0:02:59.3]}
2... Nf6 {[%clk 0:02:54.8]} 3. g3 {[%clk 0:02:58.5]} 3... e6 {[%clk 0:02:55.1]}
4. Bg2 {[%clk 0:02:58.8]} 4... Be7 {[%clk 0:02:54.5]} 5. Nh3 {[%clk 0:02:57.9]}
5... O-O {[%clk 0:02:53.6]} 6. O-O {[%clk 0:02:57.4]} 6... d6 {[%clk 0:02:54.3]}
7. Nf4 {[%clk 0:02:49.6]} 7... e5 {[%clk 0:02:53.7]} 8. Nd5 {[%clk 0:02:49.3]}
8... Nxd5 {[%clk 0:02:53.2]} 9. cxd5 {[%clk 0:02:49.1]} 9... e4 {[%clk 0:02:51]}
10. f3 {[%clk 0:02:48.9]} 10... exf3 {[%clk 0:02:50.8]} 11. Bxf3 {[%clk
0:02:49]} 11... Nd7 {[%clk 0:02:50]} 12. Nc3 {[%clk 0:02:48.4]} 12... Nf6 {[%clk
0:02:50]} 13. Bf4 {[%clk 0:02:46]} 13... Bd7 {[%clk 0:02:40.7]} 14. Qd2 {[%clk
0:02:42.2]} 14... b5 {[%clk 0:02:40.6]} 15. a3 {[%clk 0:02:39.1]} 15... Qb8
{[%clk 0:02:38.4]} 16. b4 {[%clk 0:02:37.3]} 16... a5 {[%clk 0:02:36.9]} 17. Kg2
{[%clk 0:02:36.4]} 17... Qb6 {[%clk 0:02:22.2]} 18. h4 {[%clk 0:01:51.7]} 18...
Ra7 {[%clk 0:02:09.2]} 19. h5 {[%clk 0:01:48.5]} 19... h6 {[%clk 0:02:06.3]} 20.
Rad1 {[%clk 0:01:43.9]} 20... axb4 {[%clk 0:02:04.4]} 21. axb4 {[%clk
0:01:43.7]} 21... Ra3 {[%clk 0:02:05]} 22. Ra1 {[%clk 0:01:35.8]} 22... Rfa8
{[%clk 0:02:04]} 23. Rxa3 {[%clk 0:01:35.4]} 23... Rxa3 {[%clk 0:02:04.9]} 24.
Rc1 {[%clk 0:01:27.8]} 24... Ne8 {[%clk 0:01:40.6]} 25. Qb2 {[%clk 0:01:13.2]}
25... Qa7 {[%clk 0:01:31.8]} 26. Be3 {[%clk 0:01:08.5]} 26... Nf6 {[%clk
0:01:26.5]} 27. Bf2 {[%clk 0:01:04.8]} 27... Bd8 {[%clk 0:01:21.3]} 28. Re1
{[%clk 0:00:53.8]} 28... Qa8 {[%clk 0:01:12.1]} 29. Rb1 {[%clk 0:00:52]} 29...
Be8 {[%clk 0:01:04.9]} 30. Rh1 {[%clk 0:00:47.4]} 30... Ra6 {[%clk 0:00:59.6]}
31. Qc2 {[%clk 0:00:45.8]} 31... Qc8 {[%clk 0:00:55.8]} 32. Qd2 {[%clk
0:00:24.3]} 32... Qd7 {[%clk 0:00:49.4]} 33. Be3 {[%clk 0:00:24.2]} 33... Ra3
{[%clk 0:00:45.2]} 34. Qb2 {[%clk 0:00:21.7]} 34... Ra8 {[%clk 0:00:41.7]} 35.
Bf4 {[%clk 0:00:21.9]} 35... Bf7 {[%clk 0:00:39.2]} 36. Qd2 {[%clk 0:00:18.3]}
36... Ra3 {[%clk 0:00:37.4]} 37. Qb2 {[%clk 0:00:16.1]} 37... Ra8 {[%clk
0:00:37.7]} 38. Qc1 {[%clk 0:00:12.8]} 38... Ra3 {[%clk 0:00:36.6]} 39. Qxa3
{[%clk 0:00:11.9]} 1-0

[Event "*** Titled Tuesday Blitz"]
[Site "Chess.com"]
[Date "2021.04.06"]
[Round "11"]
[White "Giorno"]
[Black "AlexSuv"]
[Result "0-1"]
[WhiteElo "2461"]
[BlackElo "2581"]
[TimeControl "180+1"]
[EndTime "12:07:04 PDT"]
[Termination "AlexSuv won by checkmate"]

1. d4 {[%clk 0:03:00.9]} 1... Nf6 {[%clk 0:02:59.8]} 2. c4 {[%clk 0:03:01]} 2...
e6 {[%clk 0:03:00.2]} 3. Nc3 {[%clk 0:02:59.1]} 3... Bb4 {[%clk 0:03:00.4]} 4.
e3 {[%clk 0:02:59.2]} 4... O-O {[%clk 0:03:00.5]} 5. Bd2 {[%clk 0:02:59.7]} 5...
d5 {[%clk 0:02:57.6]} 6. Nf3 {[%clk 0:02:59.8]} 6... b6 {[%clk 0:02:52.8]} 7.
cxd5 {[%clk 0:02:59.3]} 7... exd5 {[%clk 0:02:53.7]} 8. Rc1 {[%clk 0:02:53.6]}
8... Bb7 {[%clk 0:02:52.2]} 9. Bd3 {[%clk 0:02:53.1]} 9... c5 {[%clk 0:02:49.9]}
10. O-O {[%clk 0:02:50.9]} 10... Nc6 {[%clk 0:02:49.3]} 11. a3 {[%clk
0:02:47.2]} 11... Bxc3 {[%clk 0:02:47.5]} 12. Bxc3 {[%clk 0:02:46.2]} 12... c4
{[%clk 0:02:46.7]} 13. Bc2 {[%clk 0:02:43.3]} 13... Ne4 {[%clk 0:02:30.1]} 14.
Bxe4 {[%clk 0:02:22.2]} 14... dxe4 {[%clk 0:02:31]} 15. Ne5 {[%clk 0:02:20.7]}
15... Qd5 {[%clk 0:01:49.5]} 16. Qe2 {[%clk 0:01:59.3]} 16... b5 {[%clk
0:01:36.4]} 17. Nxc6 {[%clk 0:01:46.7]} 17... Bxc6 {[%clk 0:01:33.8]} 18. Bb4
{[%clk 0:01:45.6]} 18... Rfc8 {[%clk 0:01:18.4]} 19. Bc5 {[%clk 0:01:36.1]}
19... a6 {[%clk 0:01:09.9]} 20. f4 {[%clk 0:01:25.5]} 20... exf3 {[%clk
0:01:07.7]} 21. Rxf3 {[%clk 0:01:25]} 21... Re8 {[%clk 0:01:02]} 22. Rcf1 {[%clk
0:01:23.3]} 22... f6 {[%clk 0:00:59.7]} 23. Rg3 {[%clk 0:01:22.6]} 23... Kh8
{[%clk 0:00:57.7]} 24. Qg4 {[%clk 0:01:20.1]} 24... Qf7 {[%clk 0:00:53.6]} 25.
h4 {[%clk 0:00:43.2]} 25... Re4 {[%clk 0:00:49.6]} 26. Qh3 {[%clk 0:00:43.5]}
26... Bd7 {[%clk 0:00:37.4]} 27. Qh2 {[%clk 0:00:43.5]} 27... Qh5 {[%clk
0:00:32.8]} 28. Rgf3 {[%clk 0:00:20.2]} 28... Rxh4 {[%clk 0:00:24.7]} 29. Qc7
{[%clk 0:00:20.2]} 29... Bg4 {[%clk 0:00:21.2]} 30. Rf4 {[%clk 0:00:19.4]} 30...
Rh1+ {[%clk 0:00:18.9]} 31. Kf2 {[%clk 0:00:19.5]} 31... Qh4+ {[%clk 0:00:19.3]}
32. g3 {[%clk 0:00:17.2]} 32... Qh2+ {[%clk 0:00:19.2]} 33. Ke1 {[%clk
0:00:14.4]} 33... Qe2# {[%clk 0:00:19.7]} 0-1

[Event "*** Titled Tuesday Blitz"]
[Site "Chess.com"]
[Date "2021.04.06"]
[Round "11"]
[White "oogee"]
[Black "AttilaTurzo"]
[Result "1-0"]
[WhiteElo "2402"]
[BlackElo "2494"]
[TimeControl "180+1"]
[EndTime "12:07:05 PDT"]
[Termination "oogee won on time"]

1. d4 {[%clk 0:03:00.9]} 1... c6 {[%clk 0:03:00.7]} 2. Nf3 {[%clk 0:02:56]} 2...
d5 {[%clk 0:03:01.6]} 3. g3 {[%clk 0:02:52.6]} 3... Bg4 {[%clk 0:02:58.5]} 4.
Ne5 {[%clk 0:02:51.3]} 4... Bf5 {[%clk 0:02:58.1]} 5. Bg2 {[%clk 0:02:50.2]}
5... Nf6 {[%clk 0:02:58.3]} 6. O-O {[%clk 0:02:47.8]} 6... e6 {[%clk 0:02:58.7]}
7. Nd2 {[%clk 0:02:41]} 7... Be7 {[%clk 0:02:58.6]} 8. Ndf3 {[%clk 0:02:40.9]}
8... O-O {[%clk 0:02:58.5]} 9. Nh4 {[%clk 0:02:40.6]} 9... Be4 {[%clk
0:02:54.7]} 10. f3 {[%clk 0:02:38.9]} 10... Bg6 {[%clk 0:02:53]} 11. Nhxg6
{[%clk 0:02:38.8]} 11... hxg6 {[%clk 0:02:53.9]} 12. e4 {[%clk 0:02:37.2]} 12...
Nbd7 {[%clk 0:02:49.3]} 13. Nd3 {[%clk 0:02:31.8]} 13... c5 {[%clk 0:02:44.5]}
14. Be3 {[%clk 0:02:27.5]} 14... cxd4 {[%clk 0:02:37.2]} 15. Bxd4 {[%clk
0:02:26.4]} 15... dxe4 {[%clk 0:02:37.7]} 16. fxe4 {[%clk 0:02:25.6]} 16... Qc7
{[%clk 0:02:35.6]} 17. Kh1 {[%clk 0:02:15.8]} 17... Nc5 {[%clk 0:02:35.8]} 18.
Be5 {[%clk 0:02:06.8]} 18... Qb6 {[%clk 0:02:30.2]} 19. Qf3 {[%clk 0:01:55.4]}
19... Nxd3 {[%clk 0:02:02.4]} 20. cxd3 {[%clk 0:01:53.5]} 20... Rad8 {[%clk
0:01:58.5]} 21. Bc3 {[%clk 0:01:38.6]} 21... Nd7 {[%clk 0:01:52.7]} 22. d4
{[%clk 0:01:37.3]} 22... Qa6 {[%clk 0:01:23.7]} 23. a3 {[%clk 0:01:27]} 23...
Nb6 {[%clk 0:01:11.9]} 24. Rae1 {[%clk 0:01:24.2]} 24... Na4 {[%clk 0:01:10.9]}
25. d5 {[%clk 0:01:14.8]} 25... Nxc3 {[%clk 0:01:01.1]} 26. Qxc3 {[%clk
0:01:12]} 26... exd5 {[%clk 0:01:01.2]} 27. exd5 {[%clk 0:01:10.9]} 27... Bf6
{[%clk 0:00:56.2]} 28. Qb4 {[%clk 0:01:03.5]} 28... Rd6 {[%clk 0:00:54.3]} 29.
h4 {[%clk 0:00:59.1]} 29... Rb6 {[%clk 0:00:52.9]} 30. Qg4 {[%clk 0:00:56.8]}
30... Rxb2 {[%clk 0:00:48.8]} 31. h5 {[%clk 0:00:57]} 31... gxh5 {[%clk
0:00:48.4]} 32. Qxh5 {[%clk 0:00:56.4]} 32... Qxa3 {[%clk 0:00:41.1]} 33. Rxf6
{[%clk 0:00:51.9]} 33... Qxg3 {[%clk 0:00:34.4]} 34. Rg1 {[%clk 0:00:43.4]}
34... Rb4 {[%clk 0:00:04]} 35. Be4 {[%clk 0:00:27.2]} 1-0